Workbook

Sheet Party Overview
B3: Party Overview
B6: EVENT | D6: GUEST SUMMARY | H6: ="OUTSTANDING RSVPS: "&OutstandingRSVPs -> OUTSTANDING RSVPS: 2
B7: Grandma's 75th Birthday | D7: RSVP OVERVIEW | F7: COSTS PER GUEST | H7: BUDGET AMOUNT
D8: Confirmed Guests | E8: Total Confirmed | F8: Food | G8: Other | H8: Total
B9: DATE | D9: Adults | E9: =SUMIF(GuestTable[ATTENDING?],"=Yes",GuestTable[ADULTS]) -> 26 | F9: =FoodTable[[#Totals],[COST PER ADULT]] -> $12.69 | G9: =EssentialCostPerGuest -> $18.70 | H9: =(AttendeeSummary[[#This Row],[Food]]+AttendeeSummary[[#This Row],[Other]])*AdultTotal -> $816.03
B10: 2011-06-14 | D10: Children | E10: =SUMIF(GuestTable[ATTENDING?],"=Yes",GuestTable[CHILDREN]) -> 20 | F10: =FoodTable[[#Totals],[COST PER CHILD]] -> $7.25 | G10: =EssentialCostPerGuest -> $18.70 | H10: =(AttendeeSummary[[#This Row],[Food]]+AttendeeSummary[[#This Row],[Other]])*ChildrenTotal -> $518.97
D11: Total | E11: =SUBTOTAL(109,AttendeeSummary[Total Confirmed]) -> 46 | F11: ="Avg. "&TEXT(SUBTOTAL(101,AttendeeSummary[Food]),"$#,##0.00") -> Avg. $9.97 | G11: ="Avg. "&TEXT(SUBTOTAL(101,AttendeeSummary[Other]),"$#,##0.00") -> Avg. $18.70 | H11: =SUBTOTAL(109,AttendeeSummary[Total]) -> $1,335.00
B12: TIME
B13: 2 pm to 4 pm
B15: LOCATION | D15: BUDGET SUMMARY
B16: Aunt Kim's House | D16: ITEM | E16: COUNT | F16: BUDGET AMOUNT | G16: TOTAL COST | H16: DIFFERENCE
D17: Food and Beverage | E17: =COUNTA(FoodTable[FOOD OR BEVERAGE ITEM]) -> 18 | F17: $500.00 | G17: =FoodTable[[#Totals],[TOTAL COST]] -> $475.00 | H17: =BudgetOverview[[#This Row],[BUDGET AMOUNT]]-BudgetOverview[[#This Row],[TOTAL COST]] -> $25.00
D18: =Table1Header -> Equipment & Supplies | E18: =COUNTA(Table1Budget[Equipment & Supplies]) -> 7 | F18: $400.00 | G18: =Table1Budget[[#Totals],[Cost]] -> $400.00 | H18: =BudgetOverview[[#This Row],[BUDGET AMOUNT]]-BudgetOverview[[#This Row],[TOTAL COST]] -> $0.00
D19: =Table2Header -> Decorations | E19: =COUNTA(Table2Budget[Decorations]) -> 4 | F19: $150.00 | G19: =Table2Budget[[#Totals],[Cost]] -> $175.00 | H19: =BudgetOverview[[#This Row],[BUDGET AMOUNT]]-BudgetOverview[[#This Row],[TOTAL COST]] -> ($25.00)
D20: =Table3Header -> Other | E20: =COUNTA(Table3Budget[Other]) -> 4 | F20: $300.00 | G20: =Table3Budget[[#Totals],[Cost]] -> $285.00 | H20: =BudgetOverview[[#This Row],[BUDGET AMOUNT]]-BudgetOverview[[#This Row],[TOTAL COST]] -> $15.00
D21: Total | E21: =SUBTOTAL(109,BudgetOverview[COUNT]) -> 33 | F21: =SUBTOTAL(109,BudgetOverview[BUDGET AMOUNT]) -> $1,350.00 | G21: =SUBTOTAL(109,BudgetOverview[TOTAL COST]) -> $1,335.00 | H21: =BudgetOverview[[#Totals],[BUDGET AMOUNT]]-BudgetOverview[[#Totals],[TOTAL COST]] -> $15.00

Sheet Guest List
B3: Guest List
B7: NAME | C7: ADDRESS | D7: CITY | E7: STATE | F7: ZIP | G7: PHONE | H7: EMAIL | I7: ATTENDING? | J7: CHILDREN | K7: ADULTS | L7: TOTAL
B8: Family 1 | C8: Address 1 | D8: City 1 | E8: State 1 | F8: Zip 1 | G8: Phone 1 | H8: Email1 | I8: No | J8: 2 | K8: 2 | L8: =SUM(GuestTable[[#This Row],[CHILDREN]:[ADULTS]]) -> 4
B9: Family 2 | C9: Address 2 | D9: City 2 | E9: State 2 | F9: Zip 2 | G9: Phone 2 | H9: Email2 | I9: Yes | J9: 1 | K9: 1 | L9: =SUM(GuestTable[[#This Row],[CHILDREN]:[ADULTS]]) -> 2
B10: Family 3 | C10: Address 3 | D10: City 3 | E10: State 3 | F10: Zip 3 | G10: Phone 3 | H10: Email3 | I10: Yes | J10: 3 | K10: 3 | L10: =SUM(GuestTable[[#This Row],[CHILDREN]:[ADULTS]]) -> 6
B11: Family 4 | C11: Address 4 | D11: City 4 | E11: State 4 | F11: Zip 4 | G11: Phone 4 | H11: Email4 | K11: 2 | L11: =SUM(GuestTable[[#This Row],[CHILDREN]:[ADULTS]]) -> 2
B12: Family 5 | C12: Address 5 | D12: City 5 | E12: State 5 | F12: Zip 5 | G12: Phone 5 | H12: Email5 | I12: Yes | J12: 4 | K12: 3 | L12: =SUM(GuestTable[[#This Row],[CHILDREN]:[ADULTS]]) -> 7
B13: Family 6 | C13: Address 6 | D13: City 6 | E13: State 6 | F13: Zip 6 | G13: Phone 6 | H13: Email6 | I13: Yes | J13: 2 | K13: 2 | L13: =SUM(GuestTable[[#This Row],[CHILDREN]:[ADULTS]]) -> 4
B14: Family 7 | C14: Address 7 | D14: City 7 | E14: State 7 | F14: Zip 7 | G14: Phone 7 | H14: Email7 | I14: Yes | J14: 1 | K14: 4 | L14: =SUM(GuestTable[[#This Row],[CHILDREN]:[ADULTS]]) -> 5
B15: Family 8 | C15: Address 8 | D15: City 8 | E15: State 8 | F15: Zip 8 | G15: Phone 8 | H15: Email8 | I15: No | J15: 5 | K15: 3 | L15: =SUM(GuestTable[[#This Row],[CHILDREN]:[ADULTS]]) -> 8
B16: Family 9 | C16: Address 9 | D16: City 9 | E16: State 9 | F16: Zip 9 | G16: Phone 9 | H16: Email9 | I16: Yes | J16: 3 | K16: 2 | L16: =SUM(GuestTable[[#This Row],[CHILDREN]:[ADULTS]]) -> 5
B17: Family 10 | C17: Address 10 | D17: City 10 | E17: State 10 | F17: Zip 10 | G17: Phone 10 | H17: Email10 | I17: Yes | K17: 4 | L17: =SUM(GuestTable[[#This Row],[CHILDREN]:[ADULTS]]) -> 4
B18: Family 11 | C18: Address 11 | D18: City 11 | E18: State 11 | F18: Zip 11 | G18: Phone 11 | H18: Email11 | I18: Yes | J18: 3 | K18: 5 | L18: =SUM(GuestTable[[#This Row],[CHILDREN]:[ADULTS]]) -> 8
B19: Family 12 | C19: Address 12 | D19: City 12 | E19: State 12 | F19: Zip 12 | G19: Phone 12 | H19: Email12 | I19: No | J19: 2 | K19: 3 | L19: =SUM(GuestTable[[#This Row],[CHILDREN]:[ADULTS]]) -> 5
B20: Family 13 | C20: Address 13 | D20: City 13 | E20: State 13 | F20: Zip 13 | G20: Phone 13 | H20: Email13 | I20: Yes | J20: 3 | K20: 2 | L20: =SUM(GuestTable[[#This Row],[CHILDREN]:[ADULTS]]) -> 5
B21: Family 14 | C21: Address 14 | D21: City 14 | E21: State 14 | F21: Zip 14 | G21: Phone 14 | H21: Email14 | I21: No | K21: 1 | L21: =SUM(GuestTable[[#This Row],[CHILDREN]:[ADULTS]]) -> 1
B22: Family 15 | C22: Address 15 | D22: City 15 | E22: State 15 | F22: Zip 15 | G22: Phone 15 | H22: Email15 | K22: 2 | L22: =SUM(GuestTable[[#This Row],[CHILDREN]:[ADULTS]]) -> 2

Sheet Food & Beverage
B3: Food & Beverage
B5: Enter cost and estimated servings to automatically calculate total pieces and cost per serving based on attendance total
B6: FOOD OR BEVERAGE ITEM | C6: TOTAL COST | D6: SERVING PER CHILD | E6: SERVING PER ADULT | F6: TOTAL SERVINGS | G6: COST PER SERVING | H6: COST PER CHILD | I6: COST PER ADULT | J6: NOTES
B7: Soda | C7: $15.00 | D7: 0.5 | E7: 2 | F7: =(FoodTable[[#This Row],[SERVING PER CHILD]]*ChildrenTotal)+(FoodTable[[#This Row],[SERVING PER ADULT]]*AdultTotal) -> 62 | G7: =IFERROR(FoodTable[[#This Row],[TOTAL COST]]/FoodTable[[#This Row],[TOTAL SERVINGS]],"") -> $0.24 | H7: =IFERROR(FoodTable[[#This Row],[COST PER SERVING]]*FoodTable[[#This Row],[SERVING PER CHILD]],"") -> $0.12 | I7: =IFERROR(FoodTable[[#This Row],[COST PER SERVING]]*FoodTable[[#This Row],[SERVING PER ADULT]],"") -> $0.48 | J7: 2 liter bottles
B8: Juice boxes | C8: $15.00 | D8: 2 | E8: 0 | F8: =(FoodTable[[#This Row],[SERVING PER CHILD]]*ChildrenTotal)+(FoodTable[[#This Row],[SERVING PER ADULT]]*AdultTotal) -> 40 | G8: =IFERROR(FoodTable[[#This Row],[TOTAL COST]]/FoodTable[[#This Row],[TOTAL SERVINGS]],"") -> $0.38 | H8: =IFERROR(FoodTable[[#This Row],[COST PER SERVING]]*FoodTable[[#This Row],[SERVING PER CHILD]],"") -> $0.75 | I8: =IFERROR(FoodTable[[#This Row],[COST PER SERVING]]*FoodTable[[#This Row],[SERVING PER ADULT]],"") -> $0.00 | J8: Apple and white grape
B9: Wine | C9: $50.00 | D9: 0 | E9: 2 | F9: =(FoodTable[[#This Row],[SERVING PER CHILD]]*ChildrenTotal)+(FoodTable[[#This Row],[SERVING PER ADULT]]*AdultTotal) -> 52 | G9: =IFERROR(FoodTable[[#This Row],[TOTAL COST]]/FoodTable[[#This Row],[TOTAL SERVINGS]],"") -> $0.96 | H9: =IFERROR(FoodTable[[#This Row],[COST PER SERVING]]*FoodTable[[#This Row],[SERVING PER CHILD]],"") -> $0.00 | I9: =IFERROR(FoodTable[[#This Row],[COST PER SERVING]]*FoodTable[[#This Row],[SERVING PER ADULT]],"") -> $1.92
B10: Cake | C10: $75.00 | D10: 1 | E10: 1 | F10: =(FoodTable[[#This Row],[SERVING PER CHILD]]*ChildrenTotal)+(FoodTable[[#This Row],[SERVING PER ADULT]]*AdultTotal) -> 46 | G10: =IFERROR(FoodTable[[#This Row],[TOTAL COST]]/FoodTable[[#This Row],[TOTAL SERVINGS]],"") -> $1.63 | H10: =IFERROR(FoodTable[[#This Row],[COST PER SERVING]]*FoodTable[[#This Row],[SERVING PER CHILD]],"") -> $1.63 | I10: =IFERROR(FoodTable[[#This Row],[COST PER SERVING]]*FoodTable[[#This Row],[SERVING PER ADULT]],"") -> $1.63 | J10: Order from local bakery
B11: Ice cream | C11: $20.00 | D11: 1 | E11: 1.5 | F11: =(FoodTable[[#This Row],[SERVING PER CHILD]]*ChildrenTotal)+(FoodTable[[#This Row],[SERVING PER ADULT]]*AdultTotal) -> 59 | G11: =IFERROR(FoodTable[[#This Row],[TOTAL COST]]/FoodTable[[#This Row],[TOTAL SERVINGS]],"") -> $0.34 | H11: =IFERROR(FoodTable[[#This Row],[COST PER SERVING]]*FoodTable[[#This Row],[SERVING PER CHILD]],"") -> $0.34 | I11: =IFERROR(FoodTable[[#This Row],[COST PER SERVING]]*FoodTable[[#This Row],[SERVING PER ADULT]],"") -> $0.51
B12: Pudding cups | C12: $15.00 | D12: 1 | E12: 0 | F12: =(FoodTable[[#This Row],[SERVING PER CHILD]]*ChildrenTotal)+(FoodTable[[#This Row],[SERVING PER ADULT]]*AdultTotal) -> 20 | G12: =IFERROR(FoodTable[[#This Row],[TOTAL COST]]/FoodTable[[#This Row],[TOTAL SERVINGS]],"") -> $0.75 | H12: =IFERROR(FoodTable[[#This Row],[COST PER SERVING]]*FoodTable[[#This Row],[SERVING PER CHILD]],"") -> $0.75 | I12: =IFERROR(FoodTable[[#This Row],[COST PER SERVING]]*FoodTable[[#This Row],[SERVING PER ADULT]],"") -> $0.00 | J12: Purchase packaged cups: vanilla and chocolate
B13: Stuffed mushrooms | C13: $32.00 | D13: 1 | E13: 2 | F13: =(FoodTable[[#This Row],[SERVING PER CHILD]]*ChildrenTotal)+(FoodTable[[#This Row],[SERVING PER ADULT]]*AdultTotal) -> 72 | G13: =IFERROR(FoodTable[[#This Row],[TOTAL COST]]/FoodTable[[#This Row],[TOTAL SERVINGS]],"") -> $0.44 | H13: =IFERROR(FoodTable[[#This Row],[COST PER SERVING]]*FoodTable[[#This Row],[SERVING PER CHILD]],"") -> $0.44 | I13: =IFERROR(FoodTable[[#This Row],[COST PER SERVING]]*FoodTable[[#This Row],[SERVING PER ADULT]],"") -> $0.89 | J13: Button mushrooms stuffed with cream cheese and sausage
B14: Bruschetta | C14: $22.00 | D14: 0 | E14: 3 | F14: =(FoodTable[[#This Row],[SERVING PER CHILD]]*ChildrenTotal)+(FoodTable[[#This Row],[SERVING PER ADULT]]*AdultTotal) -> 78 | G14: =IFERROR(FoodTable[[#This Row],[TOTAL COST]]/FoodTable[[#This Row],[TOTAL SERVINGS]],"") -> $0.28 | H14: =IFERROR(FoodTable[[#This Row],[COST PER SERVING]]*FoodTable[[#This Row],[SERVING PER CHILD]],"") -> $0.00 | I14: =IFERROR(FoodTable[[#This Row],[COST PER SERVING]]*FoodTable[[#This Row],[SERVING PER ADULT]],"") -> $0.85 | J14: Tomato and basil
B15: Smoked salmon | C15: $50.00 | D15: 1 | E15: 2 | F15: =(FoodTable[[#This Row],[SERVING PER CHILD]]*ChildrenTotal)+(FoodTable[[#This Row],[SERVING PER ADULT]]*AdultTotal) -> 72 | G15: =IFERROR(FoodTable[[#This Row],[TOTAL COST]]/FoodTable[[#This Row],[TOTAL SERVINGS]],"") -> $0.69 | H15: =IFERROR(FoodTable[[#This Row],[COST PER SERVING]]*FoodTable[[#This Row],[SERVING PER CHILD]],"") -> $0.69 | I15: =IFERROR(FoodTable[[#This Row],[COST PER SERVING]]*FoodTable[[#This Row],[SERVING PER ADULT]],"") -> $1.39
B16: Mini bagels | C16: $20.00 | D16: 1 | E16: 2 | F16: =(FoodTable[[#This Row],[SERVING PER CHILD]]*ChildrenTotal)+(FoodTable[[#This Row],[SERVING PER ADULT]]*AdultTotal) -> 72 | G16: =IFERROR(FoodTable[[#This Row],[TOTAL COST]]/FoodTable[[#This Row],[TOTAL SERVINGS]],"") -> $0.28 | H16: =IFERROR(FoodTable[[#This Row],[COST PER SERVING]]*FoodTable[[#This Row],[SERVING PER CHILD]],"") -> $0.28 | I16: =IFERROR(FoodTable[[#This Row],[COST PER SERVING]]*FoodTable[[#This Row],[SERVING PER ADULT]],"") -> $0.56 | J16: 4 bags - assorted
B17: Cream cheese | C17: $10.00 | D17: 1 | E17: 2 | F17: =(FoodTable[[#This Row],[SERVING PER CHILD]]*ChildrenTotal)+(FoodTable[[#This Row],[SERVING PER ADULT]]*AdultTotal) -> 72 | G17: =IFERROR(FoodTable[[#This Row],[TOTAL COST]]/FoodTable[[#This Row],[TOTAL SERVINGS]],"") -> $0.14 | H17: =IFERROR(FoodTable[[#This Row],[COST PER SERVING]]*FoodTable[[#This Row],[SERVING PER CHILD]],"") -> $0.14 | I17: =IFERROR(FoodTable[[#This Row],[COST PER SERVING]]*FoodTable[[#This Row],[SERVING PER ADULT]],"") -> $0.28 | J17: 2 big tubs
B18: Capers | C18: $12.00 | D18: 1 | E18: 2 | F18: =(FoodTable[[#This Row],[SERVING PER CHILD]]*ChildrenTotal)+(FoodTable[[#This Row],[SERVING PER ADULT]]*AdultTotal) -> 72 | G18: =IFERROR(FoodTable[[#This Row],[TOTAL COST]]/FoodTable[[#This Row],[TOTAL SERVINGS]],"") -> $0.17 | H18: =IFERROR(FoodTable[[#This Row],[COST PER SERVING]]*FoodTable[[#This Row],[SERVING PER CHILD]],"") -> $0.17 | I18: =IFERROR(FoodTable[[#This Row],[COST PER SERVING]]*FoodTable[[#This Row],[SERVING PER ADULT]],"") -> $0.33 | J18: 3 jars
B19: Chicken wings | C19: $45.00 | D19: 2 | E19: 4 | F19: =(FoodTable[[#This Row],[SERVING PER CHILD]]*ChildrenTotal)+(FoodTable[[#This Row],[SERVING PER ADULT]]*AdultTotal) -> 144 | G19: =IFERROR(FoodTable[[#This Row],[TOTAL COST]]/FoodTable[[#This Row],[TOTAL SERVINGS]],"") -> $0.31 | H19: =IFERROR(FoodTable[[#This Row],[COST PER SERVING]]*FoodTable[[#This Row],[SERVING PER CHILD]],"") -> $0.63 | I19: =IFERROR(FoodTable[[#This Row],[COST PER SERVING]]*FoodTable[[#This Row],[SERVING PER ADULT]],"") -> $1.25 | J19: Purchase from local wing shop
B20: Hummus | C20: $10.00 | D20: 4 | E20: 6 | F20: =(FoodTable[[#This Row],[SERVING PER CHILD]]*ChildrenTotal)+(FoodTable[[#This Row],[SERVING PER ADULT]]*AdultTotal) -> 236 | G20: =IFERROR(FoodTable[[#This Row],[TOTAL COST]]/FoodTable[[#This Row],[TOTAL SERVINGS]],"") -> $0.04 | H20: =IFERROR(FoodTable[[#This Row],[COST PER SERVING]]*FoodTable[[#This Row],[SERVING PER CHILD]],"") -> $0.17 | I20: =IFERROR(FoodTable[[#This Row],[COST PER SERVING]]*FoodTable[[#This Row],[SERVING PER ADULT]],"") -> $0.25 | J20: Make the night before
B21: Parmesan pita crisps | C21: $14.00 | D21: 4 | E21: 6 | F21: =(FoodTable[[#This Row],[SERVING PER CHILD]]*ChildrenTotal)+(FoodTable[[#This Row],[SERVING PER ADULT]]*AdultTotal) -> 236 | G21: =IFERROR(FoodTable[[#This Row],[TOTAL COST]]/FoodTable[[#This Row],[TOTAL SERVINGS]],"") -> $0.06 | H21: =IFERROR(FoodTable[[#This Row],[COST PER SERVING]]*FoodTable[[#This Row],[SERVING PER CHILD]],"") -> $0.24 | I21: =IFERROR(FoodTable[[#This Row],[COST PER SERVING]]*FoodTable[[#This Row],[SERVING PER ADULT]],"") -> $0.36 | J21: Make the night before
B22: Assorted vegetables | C22: $30.00 | D22: 4 | E22: 10 | F22: =(FoodTable[[#This Row],[SERVING PER CHILD]]*ChildrenTotal)+(FoodTable[[#This Row],[SERVING PER ADULT]]*AdultTotal) -> 340 | G22: =IFERROR(FoodTable[[#This Row],[TOTAL COST]]/FoodTable[[#This Row],[TOTAL SERVINGS]],"") -> $0.09 | H22: =IFERROR(FoodTable[[#This Row],[COST PER SERVING]]*FoodTable[[#This Row],[SERVING PER CHILD]],"") -> $0.35 | I22: =IFERROR(FoodTable[[#This Row],[COST PER SERVING]]*FoodTable[[#This Row],[SERVING PER ADULT]],"") -> $0.88 | J22: Carrot sticks, celery, broccoli, cauliflower, red and green peppers
B23: Cheese ball | C23: $15.00 | D23: 5 | E23: 10 | F23: =(FoodTable[[#This Row],[SERVING PER CHILD]]*ChildrenTotal)+(FoodTable[[#This Row],[SERVING PER ADULT]]*AdultTotal) -> 360 | G23: =IFERROR(FoodTable[[#This Row],[TOTAL COST]]/FoodTable[[#This Row],[TOTAL SERVINGS]],"") -> $0.04 | H23: =IFERROR(FoodTable[[#This Row],[COST PER SERVING]]*FoodTable[[#This Row],[SERVING PER CHILD]],"") -> $0.21 | I23: =IFERROR(FoodTable[[#This Row],[COST PER SERVING]]*FoodTable[[#This Row],[SERVING PER ADULT]],"") -> $0.42 | J23: Assorted: cream cheese, sharp cheese w/nuts
B24: Crackers | C24: $25.00 | D24: 5 | E24: 10 | F24: =(FoodTable[[#This Row],[SERVING PER CHILD]]*ChildrenTotal)+(FoodTable[[#This Row],[SERVING PER ADULT]]*AdultTotal) -> 360 | G24: =IFERROR(FoodTable[[#This Row],[TOTAL COST]]/FoodTable[[#This Row],[TOTAL SERVINGS]],"") -> $0.07 | H24: =IFERROR(FoodTable[[#This Row],[COST PER SERVING]]*FoodTable[[#This Row],[SERVING PER CHILD]],"") -> $0.35 | I24: =IFERROR(FoodTable[[#This Row],[COST PER SERVING]]*FoodTable[[#This Row],[SERVING PER ADULT]],"") -> $0.69 | J24: Assorted
B25: Total | C25: =SUBTOTAL(109,FoodTable[TOTAL COST]) -> $475.00 | D25: =SUBTOTAL(109,FoodTable[SERVING PER CHILD]) -> 34.5 | E25: =SUBTOTAL(109,FoodTable[SERVING PER ADULT]) -> 65.5 | F25: =SUBTOTAL(109,FoodTable[TOTAL SERVINGS]) -> 2393 | G25: =SUBTOTAL(109,FoodTable[COST PER SERVING]) -> $6.92 | H25: =SUBTOTAL(109,FoodTable[COST PER CHILD]) -> $7.25 | I25: =SUBTOTAL(109,FoodTable[COST PER ADULT]) -> $12.69

Sheet Other Essentials
B3: Other Essentials
B6: Equipment & Supplies | C6: Cost | D6: Purchased | E6: Notes
B7: Room/hall rental | C7: $250.00 | D7: Yes
B8: Linens | C8: $30.00 | D8: Yes | E8: Rent
B9: Tables and chairs | C9: $0.00 | E9: Included in hall rental
B10: Beverage napkins | C10: $25.00
B11: Dinner napkins | C11: $20.00 | E11: Rent
B12: Table service | C12: $50.00 | E12: Rent
B13: Glassware | C13: $25.00 | E13: Rent
B14: Total | C14: =SUBTOTAL(109,Table1Budget[Cost]) -> $400.00
B17: Decorations | C17: Cost | D17: Purchased | E17: Notes
B18: Balloons | C18: $25.00
B19: Helium tank | C19: $50.00 | E19: Rent
B20: Centerpieces | C20: $100.00 | D20: Yes | E20: 10 total
B21: Glass vases | C21: $0.00 | E21: Borrowing from Sandy
B22: Total | C22: =SUBTOTAL(109,Table2Budget[Cost]) -> $175.00
B25: Other | C25: Cost | D25: Purchased | E25: Notes
B26: Invitations | C26: $50.00 | D26: Yes
B27: Postage | C27: $60.00 | D27: Yes
B28: Photographer | C28: $125.00 | E28: 2 hours (2 pm - 4 pm)
B29: Party favors | C29: $50.00
B30: Total | C30: =SUBTOTAL(109,Table3Budget[Cost]) -> $285.00

Sheet Seating Arrangement Grid
A1: Seating Arrangement
AH35: *1 square= approximately 1 square foot
A36: Notes | T36: =" Total confirmed guests: "&ConfirmedGuests -> Total confirmed guests: 46
T37: You can use any of the following table setups:
U38: =ROUNDUP(ConfirmedGuests/6,0)&" round 54-inch tables (seats 6)" -> 8 round 54-inch tables (seats 6)
U39: =ROUNDUP(ConfirmedGuests/8,0) &" round 60-inch tables (seats 8)" -> 6 round 60-inch tables (seats 8)
U40: =ROUNDUP(ConfirmedGuests/10,0)&" round 72-inch tables (seats 10)" -> 5 round 72-inch tables (seats 10)
U41: =ROUNDUP(ConfirmedGuests/6,0)& " square 30-inch x 72-inch tables (seats 6)" -> 8 square 30-inch x 72-inch tables (seats 6)
U42: =ROUNDUP(ConfirmedGuests/8,0)&" square 30-inch x 96-inch tables (seats 8)" -> 6 square 30-inch x 96-inch tables (seats 8)
T43: (Preferred space between tables: 42 inches)
